fUSD/lending_fUSD_20250512
["ID","MTS","AMOUNT","RATE_DAILY","PERIOD"]
[360782476,1747015388090,1168.94825655,0.00015,7]
[360782477,1747015408516,1398.02255568,0.000135,11]
[360782478,1747015408546,1288.58744432,0.000135,11]
[360782479,1747015466786,-372.02277073,0.00011102,2]
[360782480,1747015481676,-205.09675533,0.00011102,2]
[360782481,1747015497354,-197.39,0.00011102,2]
[360782482,1747015511701,-152.01808448,0.00011102,2]
[360782483,1747015527356,-258.41018952,0.00011102,2]
[360782484,1747015528348,-5.72219994,0.00011102,2]
[360782485,1747015528371,-252.68798958,0.00013022,2]
[360782486,1747015542890,-180.42684345,0.00013022,2]
[360782487,1747015556871,-200.0,0.00013016,2]
[360782488,1747015556894,-50.0,0.00013022,2]
[360782489,1747015571728,-185.03,0.00013019,2]
[360782490,1747015586734,-64.97,0.00013019,2]
[360782491,1747015586757,-488.23859776,0.00013022,2]
[360782492,1747015603216,3371.53,0.00028,120]
[360782493,1747015693887,-161.52,0.00012821,2]
[360782494,1747015693910,-139.94786954,0.00012921,2]
[360782500,1747015698047,1711.41255568,0.0001355,7]
[360782501,1747015708954,-110.05213046,0.00012921,2]
[360782502,1747015708976,-121.69776622,0.0001302,2]
[360782505,1747015724080,-152.29118431,0.00013,2]
[360782506,1747015739041,-5.04489197,0.00013,2]
[360782507,1747015739071,-294.66392372,0.0001302,2]
[360782511,1747015754774,-150.0,0.00013019,2]
[360782512,1747015754802,-205.33607628,0.0001302,2]
[360782513,1747015754830,-67.27969613,0.0001302,2]
[360782514,1747015768813,-327.333586,0.00012756,2]
[360782517,1747015783889,-138.946414,0.00012756,2]
[360782518,1747015783917,-419.6864542,0.0001302,2]
[360782521,1747015798924,-13.03384967,0.0001302,2]
[360782522,1747015798951,-210.55141288,0.0001302,2]
[360782523,1747015815236,-300.0,0.00013019,2]
[360782524,1747015829972,-152.0,0.00013019,2]
[360782526,1747015831654,-748.0,0.00013019,2]
[360782527,1747015831664,-109.98047029,0.00013019,2]
[360782528,1747015831675,-190.01952971,0.00013019,2]
[360782529,1747015831685,-7816.71656921,0.00013022,2]
[360782530,1747015831694,-1000.0,0.00013041,2]
[360782531,1747015831703,-1149.96,0.00013145,2]
[360782532,1747015831713,-1606.86854832,0.0001319,2]
[360782533,1747015831724,-32.56,0.00013192,2]
[360782534,1747015831734,-500.0,0.00013192,2]
[360782535,1747015831743,-500.0,0.00013192,2]
[360782536,1747015831754,-500.0,0.00013192,2]
[360782537,1747015831763,-200.29806022,0.00013192,2]
[360782538,1747015831773,-919.19896767,0.00013208,2]
[360782539,1747015831783,-4570.29016152,0.00013212,2]
[360782540,1747015831808,-97025.88659453,0.00013212,2]
[360782541,1747015831821,-26235.5172853,0.00013212,2]
[360782542,1747015831830,-1190.66,0.00013366,2]
[360782543,1747015831839,-446.2722543,0.000134,2]
[360782544,1747015831848,-164.73,0.00013406,2]
[360782546,1747015831858,-803.51,0.00013541,2]
[360782547,1747015831867,-457.17,0.00013541,2]
[360782548,1747015831876,-288.58744432,0.0001355,7]
[360782549,1747015831886,-803.51,0.000136,2]
[360782550,1747015831895,-452.36,0.000136,2]
[360782551,1747015831904,-457.17,0.000136,2]
[360782553,1747015831913,-207.4,0.00013629,2]
[360782555,1747015831923,-150.09,0.00013678,2]
[360782557,1747015831931,-233.05915937,0.00013699,2]
[360782559,1747015831940,-499.52,0.00013699,2]
[360782561,1747015831950,-457.17,0.000137,2]
[360782563,1747015831959,-803.51,0.000137,2]
[360782566,1747015831968,-1607.02,0.000138,2]
[360782568,1747015831977,-457.17,0.000138,2]
[360782570,1747015831986,-352.72,0.000138,2]
[360782571,1747015831995,-1008.49,0.000138,2]
[360782572,1747015832006,-797.74,0.000138,2]
[360782574,1747015832015,-352.72,0.000138,2]
[360782576,1747015832024,-268.41729577,0.00013898,2]
[360782577,1747015832033,-7294.78,0.00013898,2]
[360782578,1747015832043,-151.0,0.00013898,2]
[360782579,1747015832052,-659.09614185,0.00013898,2]
[360782580,1747015832062,-157.11879838,0.00013898,2]
[360782581,1747015832071,-6377.5587448,0.000139,2]
[360782582,1747015832081,-18239.1726,0.000139,2]
[360782583,1747015832090,-1000.0,0.000139,2]
[360782584,1747015832099,-299.99,0.000139,2]
[360782585,1747015832108,-352.72,0.000139,2]
[360782586,1747015832117,-803.51,0.000139,2]
[360782587,1747015832128,-457.17,0.000139,2]
[360782588,1747015832137,-168.38,0.0001399,2]
[360782589,1747015832146,-5550.0,0.00014,2]
[360782590,1747015832156,-457.17,0.00014,2]
[360782591,1747015832166,-803.51,0.00014,2]
[360782592,1747015832175,-467.99,0.00014,2]
[360782593,1747015832185,-590.79857921,0.00014,2]
[360782594,1747015837581,-500.0,0.00013019,2]
[360782595,1747015837591,-500.0,0.00013019,2]
[360782596,1747015837600,-500.0,0.00013019,2]
[360782597,1747015837609,-500.0,0.00013019,2]
[360782598,1747015837619,-500.0,0.00013019,2]
[360782599,1747015837628,-500.0,0.00013019,2]
[360782600,1747015837638,-176.30743247,0.00013019,2]
[360782628,1747015839669,-323.69256753,0.00013019,2]
[360782630,1747015839678,-618.57831936,0.00013019,2]
[360782632,1747015839689,-500.0,0.00013019,2]
[360782634,1747015839699,-258.80557484,0.00013699,2]
[360782636,1747015839708,-232.25142079,0.00014,2]
[360782638,1747015839718,-1167.52,0.00014,2]
[360782640,1747015839728,-457.17,0.00014,2]
[360782642,1747015839738,-1607.02,0.00014,2]
[360782644,1747015839748,-457.17,0.00014,2]
[360782646,1747015839757,-352.72,0.00014,2]
[360782648,1747015839771,-325.0,0.00014,2]
[360782650,1747015839780,-151.0,0.00014,2]
[360782652,1747015839789,-659.09614185,0.00014,2]
[360782654,1747015839798,-544.87692382,0.0001404,2]
[360782656,1747015839808,-169.89751976,0.0001409,2]
[360782658,1747015839818,-1000.0,0.00014091,2]
[360782660,1747015839827,-3308.91217815,0.00014096,2]
[360782662,1747015839836,-250.0,0.00014104,2]
[360782664,1747015839846,-255.0,0.00014125,2]
[360782666,1747015839855,-250.0,0.00014133,2]
[360782668,1747015839864,-500.0,0.00014173,2]
[360782670,1747015839873,-636.48688231,0.00014173,2]
[360782673,1747015839884,-505.32219338,0.00014173,2]
[360782675,1747015839893,-168.38,0.0001418,2]
[360782677,1747015839903,-168.38,0.0001418,2]
[360782679,1747015839911,-294.00166648,0.00014182,2]
[360782681,1747015839921,-156.36645479,0.00014182,2]
[360782683,1747015839930,-151.0,0.00014182,2]
[360782685,1747015839939,-400.0,0.00014188,2]
[360782686,1747015839948,-400.0,0.00014189,2]
[360782688,1747015839957,-400.0,0.00014189,2]
[360782689,1747015839966,-400.0,0.00014189,2]
[360782691,1747015839975,-406.74,0.00014189,2]
[360782693,1747015839984,-400.0,0.00014189,2]
[360782695,1747015839993,-400.0,0.00014189,2]
[360782697,1747015840002,-400.0,0.00014189,2]
[360782698,1747015840012,-400.0,0.00014189,2]
[360782699,1747015840022,-400.0,0.00014189,2]
[360782700,1747015840032,-400.0,0.00014189,2]
[360782701,1747015840041,-663.46,0.00014189,2]
[360782703,1747015840051,-400.0,0.00014189,2]
[360782705,1747015840060,-400.0,0.00014189,2]
[360782707,1747015840069,-400.0,0.00014189,2]
[360782709,1747015840079,-400.0,0.00014189,2]
[360782711,1747015840088,-486.22,0.00014189,2]
[360782713,1747015840098,-49.31356933,0.00014189,2]
[360782727,1747015840788,-350.68643067,0.00014189,2]
[360782728,1747015840797,-173.65553756,0.00014189,2]
[360782729,1747015840808,-226.34446244,0.00014189,2]
[360782730,1747015840817,-504.7516581,0.00014189,2]
[360782731,1747015840826,-400.0,0.00014189,2]
[360782732,1747015840836,-541.2,0.00014189,2]
[360782733,1747015840845,-120.10387986,0.00014189,2]
[360782734,1747015842030,-3.65108166,0.00014189,2]
[360782735,1747015842048,-276.5322427,0.00014189,2]
[360782736,1747015842057,-400.0,0.00014189,2]
[360782737,1747015842067,-263.50415444,0.00014189,2]
[360782738,1747015842079,-3268.93584556,0.00014189,2]
[360782739,1747015842088,-400.0,0.00014189,2]
[360782740,1747015842097,-400.0,0.00014189,2]
[360782741,1747015842107,-400.0,0.00014189,2]
[360782742,1747015842116,-400.0,0.00014189,2]
[360782743,1747015842126,-400.0,0.00014189,2]
[360782744,1747015842136,-400.0,0.00014189,2]
[360782745,1747015842145,-1062.11,0.00014189,2]
[360782746,1747015842155,-3611.81276271,0.00014189,2]
[360782747,1747015842179,-6025.44685341,0.00014189,2]
[360782748,1747015842191,-3833.27038388,0.00014189,2]
[360782749,1747015842200,-400.0,0.00014189,2]
[360782750,1747015842210,-1131.36,0.00014189,2]
[360782751,1747015842219,-400.0,0.00014189,2]
[360782752,1747015842229,-401.52082445,0.00014189,2]
[360782753,1747015842238,-400.0,0.00014189,2]
[360782754,1747015842248,-2641.16,0.00014189,2]
[360782755,1747015842258,-401.53826932,0.00014189,2]
[360782756,1747015842269,-400.0,0.00014189,2]
[360782757,1747015842278,-400.0,0.00014189,2]
[360782758,1747015842287,-400.0,0.00014189,2]
[360782760,1747015842297,-400.0,0.00014189,2]
[360782761,1747015842307,-400.0,0.00014189,2]
[360782762,1747015842316,-400.0,0.00014189,2]
[360782763,1747015842326,-705.48,0.00014189,2]
[360782764,1747015842336,-400.0,0.00014189,2]
[360782765,1747015842345,-518.68,0.00014189,2]
[360782766,1747015842355,-469.17,0.00014189,2]
[360782767,1747015842365,-400.0,0.00014189,2]
[360782768,1747015842374,-638.74,0.00014189,2]
[360782769,1747015842384,-478.00043374,0.00014189,2]
[360782770,1747015842394,-400.0,0.00014189,2]
[360782772,1747015842403,-1078.28,0.00014189,2]
[360782773,1747015842413,-627.90834129,0.00014189,2]
[360782774,1747015842423,-400.0,0.00014189,2]
[360782775,1747015842434,-2256.181027,0.00014189,2]
[360782776,1747015842443,-400.0,0.00014189,2]
[360782777,1747015842453,-1508.77,0.00014189,2]
[360782778,1747015842463,-547.8,0.00014189,2]
[360782779,1747015842472,-500.0,0.0001419,2]
[360782780,1747015842482,-402.06102879,0.0001419,2]
[360782781,1747015842491,-162.97711009,0.0001419,2]
[360782782,1747015842513,-237.02288991,0.0001419,2]
[360782783,1747015842526,-120.42140122,0.0001419,2]
[360782784,1747015842537,-303.52877973,0.0001419,2]
[360782785,1747015842548,-82.47641059,0.0001419,2]
[360782786,1747015842557,-152.10625689,0.0001419,2]
[360782787,1747015842566,-404.43912553,0.0001419,2]
[360782788,1747015842575,-400.0,0.0001419,2]
[360782789,1747015842584,-401.74330898,0.0001419,2]
[360782790,1747015842594,-400.0,0.0001419,2]
[360782791,1747015842603,-160.059966,0.0001419,2]
[360782792,1747015842612,-311.09238172,0.0001419,2]
[360782793,1747015842621,-159.558871,0.0001419,2]
[360782794,1747015842632,-400.0,0.0001419,2]
[360782795,1747015842644,-400.0,0.0001419,2]
[360782797,1747015842653,-761.011653,0.0001419,2]
[360782798,1747015842662,-11422.01202629,0.0001419,2]
[360782799,1747015843800,-593.18652767,0.00014189,2]
[360782800,1747015843810,-150.53159759,0.00014189,2]
[360782803,1747015845459,-0.46840241,0.00014189,2]
[360782804,1747015845469,-301.56159763,0.0001419,2]
[360782805,1747015845646,-3494.98446208,0.0001419,2]
[360782806,1747015845656,-4598.12,0.0001419,2]
[360782807,1747015845666,-422.94,0.0001419,2]
[360782808,1747015845676,-615.7,0.0001419,2]
[360782809,1747015845686,-518.93,0.0001419,2]
[360782810,1747015845696,-1305.67,0.0001419,2]
[360782811,1747015845706,-1893.39,0.0001419,2]
[360782812,1747015845715,-400.0,0.0001419,2]
[360782813,1747015845725,-400.0,0.0001419,2]
[360782814,1747015845735,-400.0,0.0001419,2]
[360782815,1747015845745,-400.0,0.0001419,2]
[360782816,1747015845754,-400.0,0.0001419,2]
[360782817,1747015845764,-532.1,0.0001419,2]
[360782818,1747015845775,-400.0,0.0001419,2]
[360782819,1747015845785,-346.70473669,0.0001419,2]
[360782820,1747015845794,-406.74,0.0001419,2]
[360782821,1747015845803,-400.0,0.0001419,2]
[360782822,1747015845813,-400.0,0.0001419,2]
[360782823,1747015845822,-406.74,0.0001419,2]
[360782824,1747015845832,-400.0,0.0001419,2]
[360782825,1747015845841,-400.0,0.0001419,2]
[360782826,1747015845850,-228.60355898,0.0001419,2]
[360782827,1747015845859,-631.6,0.0001419,2]
[360782828,1747015845868,-400.0,0.0001419,2]
[360782829,1747015845889,-400.0,0.0001419,2]
[360782830,1747015845905,-400.0,0.0001419,2]
[360782831,1747015845923,-400.0,0.0001419,2]
[360782832,1747015845941,-400.0,0.0001419,2]
[360782833,1747015845956,-400.0,0.0001419,2]
[360782834,1747015845975,-400.0,0.0001419,2]
[360782835,1747015845994,-400.0,0.0001419,2]
[360782836,1747015846012,-400.0,0.0001419,2]
[360782837,1747015846035,-400.0,0.0001419,2]
[360782838,1747015846052,-663.46,0.0001419,2]
[360782839,1747015846070,-400.0,0.0001419,2]
[360782840,1747015846084,-663.46,0.0001419,2]
[360782841,1747015846098,-400.0,0.0001419,2]
[360782842,1747015846115,-400.0,0.0001419,2]
[360782843,1747015846128,-400.0,0.0001419,2]
[360782844,1747015846147,-400.0,0.0001419,2]
[360782845,1747015846159,-1254.99090718,0.0001419,2]
[360782846,1747015846184,-6133.71474175,0.0001419,2]
[360782847,1747015846201,-2135.32435107,0.0001419,2]
[360782848,1747015846216,-400.0,0.0001419,2]
[360782849,1747015846230,-198.17832455,0.0001419,2]
[360782850,1747015846245,-400.0,0.0001419,2]
[360782851,1747015846259,-494.21107816,0.0001419,2]
[360782852,1747015846277,-486.22,0.0001419,2]
[360782853,1747015846293,-486.22,0.0001419,2]
[360782854,1747015846308,-400.0,0.0001419,2]
[360782855,1747015846323,-201.05839118,0.0001419,2]
[360782856,1747015846338,-4966.75,0.0001419,2]
[360782857,1747015846354,-400.0,0.0001419,2]
[360782858,1747015846369,-400.0,0.0001419,2]
[360782859,1747015846383,-400.0,0.0001419,2]
[360782860,1747015846401,-400.0,0.0001419,2]
[360782861,1747015846418,-400.0,0.0001419,2]
[360782862,1747015846434,-541.2,0.0001419,2]
[360782863,1747015846449,-541.2,0.0001419,2]
[360782864,1747015846464,-400.0,0.0001419,2]
[360782865,1747015846479,-157.03928657,0.0001419,2]
[360782866,1747015846494,-3532.44,0.0001419,2]
[360782867,1747015846508,-1120.98,0.0001419,2]
[360782868,1747015846526,-3532.44,0.0001419,2]
[360782869,1747015846541,-400.0,0.0001419,2]
[360782870,1747015846557,-3532.44,0.0001419,2]
[360782871,1747015846572,-400.0,0.0001419,2]
[360782872,1747015846586,-3359.94,0.0001419,2]
[360782873,1747015846602,-400.0,0.0001419,2]
[360782874,1747015846617,-400.0,0.0001419,2]
[360782875,1747015846632,-209.87559531,0.0001419,2]
[360782876,1747015846648,-400.0,0.0001419,2]
[360782877,1747015846663,-400.0,0.0001419,2]
[360782878,1747015846677,-400.0,0.0001419,2]
[360782879,1747015846694,-400.0,0.0001419,2]
[360782880,1747015846712,-400.0,0.0001419,2]
[360782881,1747015846728,-1514.02,0.0001419,2]
[360782882,1747015846744,-2554.85,0.0001419,2]
[360782883,1747015846759,-400.0,0.0001419,2]
[360782884,1747015846774,-156.05829057,0.0001419,2]
[360782885,1747015846788,-401.24233608,0.0001419,2]
[360782886,1747015846804,-1062.11,0.0001419,2]
[360782887,1747015846820,-1062.11,0.0001419,2]
[360782888,1747015846835,-400.0,0.0001419,2]
[360782889,1747015846850,-3916.56062772,0.0001419,2]
[360782890,1747015846868,-1836.04690002,0.0001419,2]
[360782891,1747015846886,-1144.90926115,0.0001419,2]
[360782892,1747015931757,-183.56425911,0.00013208,2]
[360782893,1747015933906,-1.51574089,0.00013208,2]
[360782894,1747015946044,-164.53570043,0.00013019,2]
[360782895,1747015949104,-162.98513773,0.00013019,2]
[360782896,1747015977574,-216.25706895,0.00013167,2]
[360782897,1747015981207,-186.03411536,0.00013167,2]
[360782898,1747015995725,-164.71967137,0.00013167,2]
[360782899,1747016010185,-596.8364341,0.00013167,2]
[360782900,1747016024060,-226.58947392,0.00013167,2]
[360782901,1747016039464,-287.81143084,0.00013167,2]
[360782902,1747016054477,-183.5383065,0.00013167,2]
[360782903,1747016068955,-247.64428827,0.00013167,2]
[360782904,1747016084424,-169.75961356,0.00013167,2]
[360782905,1747016099571,-150.0,0.00013153,2]
[360782906,1747016099593,-40.21,0.00013167,2]
[360782907,1747016114013,-195.6,0.00013166,2]
[360782908,1747016128877,-188.44163347,0.00013166,2]
[360782909,1747016143914,-115.95836653,0.00013166,2]
[360782910,1747016143943,-102.03763998,0.00013166,2]
[360782911,1747016158900,-316.43574089,0.00013166,2]
[360782912,1747016173934,-81.52661913,0.00013166,2]
[360782913,1747016173964,-262.66633488,0.00013166,2]
[360782914,1747016188973,-155.80704599,0.0001312,2]
[360782915,1747016203954,-167.01194082,0.00013105,2]
[360782916,1747016219965,-182.89717704,0.00013105,2]
[360782917,1747016234553,-273.87713642,0.00013098,2]
[360782918,1747016248883,-266.71032109,0.00013098,2]
[360782920,1747016264691,-247.59254249,0.00013098,2]
[360782921,1747016264714,-131.1875798,0.00013105,2]
[360782922,1747016278909,-4.14330234,0.00013105,2]
[360782923,1747016278932,-175.86669766,0.0001312,2]
[360782924,1747016293970,-161.19,0.0001312,2]
[360782925,1747016309413,-98.80625635,0.0001312,2]
[360782926,1747016309437,-205.81563251,0.00013143,2]
[360782927,1747016324123,-200.20262062,0.00013077,2]
[360782928,1747016324147,-15.35727747,0.00013143,2]
[360782929,1747016339130,-190.8872933,0.00013098,2]
[360782930,1747016355679,-59.1127067,0.00013098,2]
[360782931,1747016355701,-28.82709002,0.00013143,2]
[360782932,1747016355729,-71.2644105,0.00013166,2]
[360782933,1747016355756,-231.50039295,0.00013166,2]
[360782934,1747016368953,-147.27972934,0.00013166,2]
[360782935,1747016368982,-27.70143079,0.00013166,2]
[360782936,1747016383961,-152.30856921,0.00013166,2]
[360782937,1747016383983,-103.09686548,0.00013166,2]
[360782938,1747016398921,-179.61765318,0.00013085,2]
[360782939,1747016402801,4016.9,0.0001,2]
[360782940,1747016413972,-250.0,0.00013085,2]
[360782941,1747016428920,-173.65706895,0.00013085,2]
[360782942,1747016443962,-31.76527787,0.00013085,2]
[360782943,1747016443983,-91.20874848,0.00013166,2]
[360782944,1747016444008,-244.04296654,0.00013166,2]
[360782945,1747016459143,-146.66163363,0.00013166,2]
[360782946,1747016459166,-207.02917222,0.00013167,2]
[360782947,1747016468255,383.16438,7.945e-05,2]
[360782948,1747016474964,-244.00171574,0.00013167,2]
[360782950,1747016488847,-269.55041985,0.00013167,2]
[360782952,1747016504167,-269.55041985,0.00013011,2]
[360782953,1747016518905,-180.30363672,0.00013011,2]
[360782954,1747016534873,-180.30363672,0.00013011,2]
[360782955,1747016549147,-351.86769547,0.00013011,2]
[360782956,1747016563993,-171.79613539,0.00012946,2]
[360782957,1747016579047,-231.30280941,0.00012946,2]
[360782958,1747016594086,-159.0,0.00012946,2]
[360782959,1747016608924,-226.76926283,0.00012946,2]
[360782960,1747016623897,-281.30280941,0.0001297,2]
[360782961,1747016640748,-315.5713177,0.00011052,2]
[360782962,1747016655219,-190.27755572,0.00011052,2]
[360782963,1747016669508,-308.62299645,0.00011052,2]
[360782964,1747016671044,-156.62299645,0.00011052,2]
[360782965,1747016685723,-129.56513368,0.00011052,2]
[360782966,1747016685759,-170.43486632,0.00012157,2]
[360782967,1747016699432,-79.56513368,0.00012157,2]
[360782968,1747016699462,-77.61486632,0.0001288,2]
[360782969,1747016713883,-155.72200098,0.00012879,2]
[360782970,1747016728949,-213.61502332,0.00012814,2]
[360782971,1747016743926,-283.99014983,0.00012814,2]
[360782972,1747016758924,-282.46097747,0.00012814,2]
[360782973,1747016774738,-107.45107438,0.00012814,2]
[360782974,1747016774762,-175.00990309,0.00012879,2]
[360782975,1747016788989,-205.3454573,0.00012879,2]
[360782976,1747016804136,-295.00793421,0.00012879,2]
[360782977,1747016819525,-204.99206579,0.00012879,2]
[360782978,1747016819554,-45.00793421,0.00012879,2]
[360782980,1747016833934,-216.66282283,0.00012879,2]
[360782982,1747016850471,-187.58670763,0.00012779,2]
[360782983,1747016850500,-63.1606188,0.00012879,2]
[360782986,1747016878897,4059.29767805,0.0001,2]
[360782987,1747016881353,-195.79235064,0.000128,2]
[360782988,1747016896256,-162.88175433,0.000128,2]
[360782989,1747016896287,-87.11824567,0.00012879,2]
[360782990,1747016911367,-88.05037849,0.00012879,2]
[360782991,1747016911398,-90.35767516,0.00012879,2]
[360782992,1747016926612,-151.53,0.00012795,2]
[360782995,1747016941228,-230.26909439,0.00012795,2]
[360782996,1747016956266,-118.20090561,0.00012795,2]
[360782997,1747016956295,-263.51880698,0.00012878,2]
[360782999,1747016971806,-217.21786444,0.00012878,2]
[360783005,1747016986801,-19.26332858,0.00012878,2]
[360783006,1747016986830,-172.51880698,0.00012878,2]
[360783008,1747017001812,-223.49909439,0.00012813,2]
[360783013,1747017016265,-286.41181122,0.00012813,2]
[360783014,1747017031249,-280.80880739,0.00012813,2]
[360783015,1747017031277,-57.91934749,0.00012878,2]
[360783020,1747017031644,-269.56184553,0.00012878,2]
[360783022,1747017031653,-192.03840137,0.00012878,2]
[360783024,1747017031663,-593.33773485,0.000129,2]
[360783027,1747017031803,-200.07226515,0.000129,2]
[360783028,1747017031813,-190.32,0.00012911,2]
[360783029,1747017031823,-157.98,0.00012914,2]
[360783030,1747017031834,-187.58670761,0.00012923,2]
[360783031,1747017031845,-643.51875587,0.00012969,2]
[360783032,1747017031870,-508.28505914,0.00012969,2]
[360783033,1747017031916,-48.19618499,0.00012969,2]
[360783034,1747017031926,-300.0,0.00012969,2]
[360783035,1747017031935,-15417.34286943,0.0001297,2]
[360783036,1747017031948,-549.0,0.0001297,2]
[360783037,1747017031971,-125.69432116,0.0001297,2]
[360783038,1747017031981,-150.0,0.0001301,2]
[360783039,1747017031990,-88.69864775,0.00013011,2]
[360783040,1747017032035,-43674.80596349,0.00013011,2]
[360783041,1747017032047,-187.58670761,0.00013067,2]
[360783042,1747017032057,-600.33682124,0.00013166,2]
[360783043,1747017032067,-960.01828932,0.00013167,2]
[360783044,1747017032076,-1100.66,0.00013316,2]
[360783045,1747017032086,-457.17,0.00013441,2]
[360783046,1747017032095,-803.51,0.00013441,2]
[360783047,1747017032104,-1461.11,0.00013529,11]
[360783048,1747017032113,-207.4,0.00013629,2]
[360783049,1747017032122,-474.54,0.00013699,2]
[360783050,1747017032132,-266.71032109,0.00013699,2]
[360783051,1747017032143,-496.99,0.000137,2]
[360783052,1747017032154,-1118.69,0.000137,2]
[360783053,1747017032164,-457.17,0.000137,2]
[360783054,1747017032174,-803.51,0.000137,2]
[360783055,1747017032184,-500.0,0.00013726,2]
[360783056,1747017032195,-1003.20743364,0.00013897,2]
[360783057,1747017032204,-235.54839505,0.00013897,2]
[360783058,1747017032214,-1003.2074336,0.00013898,2]
[360783060,1747017032224,-2358.6706,0.00013898,2]
[360783062,1747017032234,-806.451,0.00013898,2]
[360783064,1747017032243,-1721.868,0.00013898,2]
[360783066,1747017032252,-1003.2074336,0.00013899,2]
[360783069,1747017032262,-316.22757934,0.00013899,2]
[360783071,1747017032272,-178.42659807,0.00013899,2]
[360783073,1747017032281,-1003.2074336,0.00013899,2]
[360783075,1747017032291,-97.0067951,0.000139,2]
[360783079,1747017037671,-235.548395,0.00013897,2]
[360783080,1747017037681,-2195.95765529,0.000139,2]
[360783081,1747017037710,-3297.26077,0.000139,2]
[360783082,1747017037722,-757.5999999,0.000139,2]
[360783083,1747017037824,-2875.34148816,0.000139,2]
[360783084,1747017038022,-455.21224292,0.000139,2]
[360783085,1747017038081,-759.19586436,0.000139,2]
[360783090,1747017039729,-10384.27438427,0.000139,2]
[360783091,1747017039739,-7948.38845593,0.000139,2]
[360783092,1747017039751,-2089.198296,0.000139,2]
[360783093,1747017039791,-235.548395,0.00013897,2]
[360783094,1747017039806,-1764.451605,0.000139,2]
[360783095,1747017039839,-1574.92386286,0.000139,2]
[360783096,1747017039994,-2490.03926334,0.000139,2]
[360783097,1747017040967,-1037.99999985,0.000139,2]
[360783098,1747017040979,-607.3552,0.000139,2]
[360783101,1747017042737,-464.28057221,0.000139,2]
[360783102,1747017042836,-667.73525073,0.000139,2]
[360783103,1747017042886,-470.0000045,0.000139,2]
[360783119,1747017043431,-649.32987711,0.000139,2]
[360783124,1747017043469,-1300.0,0.000139,2]
[360783128,1747017043493,-1518.35981725,0.000139,2]
[360783395,1747017046214,-235.548395,0.00013898,2]
[360783397,1747017046224,-8239.87899522,0.000139,2]
[360783399,1747017046235,-1003.2074336,0.000139,2]
[360783401,1747017046244,-1003.2074336,0.00013901,2]
[360783403,1747017046253,-1003.2074336,0.00013902,2]
[360783405,1747017046262,-1003.2074336,0.00013902,2]
[360783407,1747017046271,-1003.2074336,0.00013903,2]
[360783410,1747017046282,-1003.2074336,0.00013904,2]
[360783411,1747017046291,-688.86880227,0.00013908,2]
[360783414,1747017046302,-2851.07,0.0001392,2]
[360783415,1747017046311,-9330.68,0.00013931,2]
[360783418,1747017046320,-12634.70920591,0.00013965,2]
[360783432,1747017046459,-431.22961645,0.00013965,2]
[360783868,1747017061126,-443.52,0.00013111,2]
[360783870,1747017076078,-164.27690735,0.00013067,2]
[360783871,1747017091058,-282.46097747,0.00013067,2]
[360783872,1747017106056,-170.7393119,0.00013067,2]
[360783874,1747017121077,-247.75061802,0.00013067,2]
[360783875,1747017141264,-172.04,0.00012899,2]
[360783877,1747017367558,-166.96,0.00010323,2]
[360783878,1747017367582,-31.49916692,0.00011356,2]
[360783879,1747017376082,-172.40610424,0.00011356,2]
[360783881,1747017391207,-46.09472884,0.00011356,2]
[360783901,1747017737609,-215.95880197,0.00010659,2]
[360783903,1747017751112,-215.95880197,0.00010659,2]
[360783904,1747017766188,-172.04,0.00010659,2]
[360783905,1747017813872,-150.0,0.00010659,2]
[360783908,1747017906166,-343.72042292,0.00010659,2]